bitfinex-derivatives/quotes_SOLF0:USTF0_20250211
["timestamp","ask_amount","ask_price","bid_price","bid_amount"]
[1739308165218,0.03443169,196.68,196.65,0.03687629]
[1739308166624,0.03443169,196.68,196.65,5.12277629]
[1739308167714,5.11953169,196.68,196.65,5.12277629]
[1739308169525,0.03443169,196.68,196.65,5.12277629]
[1739308170321,0.03443169,196.68,196.65,0.03687629]
[1739308170524,0.03443169,196.68,196.66,5.0856]
[1739308171025,0.03443169,196.68,196.65,0.03687629]
[1739308171227,0.03443169,196.68,196.67,5.0854]
[1739308172528,14.00350372,196.79,196.65,14.04038001]
[1739308172825,5.083,196.77,196.65,14.00350372]
[1739308173224,5.083,196.77,196.68,5.085]
[1739308173525,5.0837,196.74,196.62,14.00350372]
[1739308173726,14.00350372,196.73,196.62,14.00350372]
[1739308173928,0.03890637,196.7,196.66,0.03777336]
[1739308175027,14.04241009,196.7,196.66,0.03777336]
[1739308175422,19.12711009,196.7,196.66,5.12337336]
[1739308177029,14.04241009,196.7,196.66,0.03777336]
[1739308177231,14.04241009,196.7,196.67,5.0853]
[1739308177428,0.03890637,196.7,196.67,5.0853]
[1739308177629,0.03890637,196.7,196.66,0.03777336]
[1739308177827,5.12380637,196.7,196.66,0.03777336]
[1739308178021,0.03890637,196.7,196.66,0.03777336]
[1739308178223,5.0849,196.69,196.66,0.03777336]
[1739308181635,8.93891046,196.68,196.66,0.03777336]
[1739308181838,8.93891046,196.68,196.66,5.12337336]
[1739308182037,8.93891046,196.68,196.66,0.03777336]
[1739308182338,8.97781683,196.7,196.67,5.0853]
[1739308183635,8.97781683,196.7,196.66,5.12327336]
[1739308184038,8.93891046,196.68,196.66,0.03777336]
[1739308185140,8.93891046,196.68,196.67,5.0854]
[1739308187542,8.93891046,196.68,196.66,5.12337336]
[1739308188644,8.93891046,196.68,196.66,0.03777336]
[1739308188846,8.93891046,196.68,196.67,5.0854]
[1739308189044,8.93891046,196.68,196.66,0.03777336]
[1739308189846,8.93891046,196.68,196.66,5.12337336]
[1739308190548,8.93891046,196.68,196.66,0.03777336]
[1739308191249,14.02411046,196.68,196.66,0.03777336]
[1739308192345,8.93891046,196.68,196.66,0.03777336]
[1739308192547,5.0854,196.67,196.66,0.03777336]
[1739308194149,5.0863,196.64,196.57,8.93891046]
[1739308194448,8.93891046,196.62,196.59,5.0873]
[1739308194847,14.02511046,196.64,196.57,8.93891046]
[1739308195048,14.02511046,196.64,196.61,5.0869]
[1739308195349,0.03768885,196.62,196.61,5.0869]
[1739308196845,0.03768885,196.62,196.59,5.12282745]
[1739308197050,0.03768885,196.62,196.59,0.03552745]
[1739308197448,0.03768885,196.62,196.61,5.0869]
[1739308199043,0.03768885,196.62,196.6,5.0872]
[1739308201952,0.03768885,196.62,196.59,0.03552745]
[1739308202251,0.03768885,196.62,196.61,5.0869]
[1739308202453,0.03768885,196.62,196.59,0.03552745]
[1739308202958,0.03768885,196.62,196.6,5.087]
[1739308203154,0.03768885,196.62,196.59,0.03552745]
[1739308203756,0.03768885,196.62,196.61,5.0869]
[1739308207660,8.93891046,196.7,196.61,8.93891046]
[1739308207860,8.93891046,196.7,196.65,8.93891046]
[1739308208466,8.93891046,196.72,196.65,8.93891046]
[1739308208669,8.93891046,196.74,196.67,8.93891046]
[1739308208861,0.03775209,196.7,196.67,8.97493841]
[1739308209861,0.03775209,196.7,196.69,5.0849]
[1739308210068,0.03775209,196.7,196.69,14.02381046]
[1739308211464,0.03775209,196.7,196.69,8.93891046]
[1739308212566,0.03775209,196.7,196.69,14.02381046]
[1739308213670,0.03775209,196.7,196.67,0.03602795]
[1739308214772,5.12245209,196.7,196.67,0.03602795]
[1739308214969,0.03775209,196.7,196.67,8.97493841]
[1739308215874,0.03775209,196.7,196.67,14.06013841]
[1739308218977,0.03775209,196.7,196.67,8.97493841]
[1739308219175,0.03775209,196.7,196.68,5.085]
[1739308220371,0.03775209,196.7,196.67,8.97493841]
[1739308220576,5.12245209,196.7,196.67,0.03602795]
[1739308221471,5.0851,196.68,196.67,0.03602795]
[1739308223378,5.0849,196.69,196.67,0.03602795]
[1739308223972,5.0849,196.69,196.67,5.12142795]
[1739308225175,5.0851,196.68,196.67,0.03602795]
[1739308228482,5.085,196.69,196.67,0.03602795]
[1739308230279,8.97666255,196.7,196.67,0.03602795]
[1739308230474,14.02401046,196.68,196.67,0.03602795]
[1739308232486,5.0865,196.63,196.59,5.0874]
[1739308232787,8.93891046,196.62,196.59,5.0874]
[1739308232986,8.93891046,196.62,196.57,10.51751046]
[1739308233184,8.93891046,196.64,196.57,10.51751046]
[1739308233585,0.0331559,196.62,196.59,0.03603975]
[1739308233886,0.0331559,196.62,196.59,5.12333975]
[1739308234181,0.0331559,196.62,196.59,0.03603975]
[1739308234382,0.0331559,196.62,196.6,5.087]
[1739308234587,0.0331559,196.62,196.59,0.03603975]
[1739308235289,0.0331559,196.62,196.61,5.0869]
[1739308236286,0.0331559,196.62,196.59,8.97495021]
[1739308236487,0.0331559,196.62,196.6,5.0872]
[1739308236690,0.0331559,196.62,196.59,0.03603975]
[1739308237288,5.1198559,196.62,196.59,5.12323975]
[1739308237488,0.0331559,196.62,196.59,0.03603975]
[1739308238987,0.0331559,196.62,196.61,5.0869]
[1739308239691,0.0331559,196.62,196.61,14.02581046]
[1739308243987,8.93891046,196.68,196.61,8.93891046]
[1739308244197,8.93891046,196.68,196.63,8.93891046]
[1739308244590,8.93891046,196.7,196.65,14.02461046]
[1739308244794,8.93891046,196.72,196.65,8.93891046]
[1739308244989,8.93891046,196.74,196.69,5.0848]
[1739308245190,0.03905875,196.7,196.69,5.0848]
[1739308246292,0.03905875,196.7,196.69,14.02371046]
[1739308251796,5.875e-05,196.7,196.69,14.02371046]
[1739308253699,5.875e-05,196.7,196.69,15.62601046]
[1739308254201,82.79252535,196.8,196.75,5.0831]
[1739308254801,5.0823,196.79,196.75,5.0831]
[1739308255001,8.93891046,196.8,196.76,5.0831]
[1739308255200,8.93891046,196.8,196.74,8.93891046]
[1739308255400,8.93891046,196.8,196.77,5.0827]
[1739308255701,5.0818,196.81,196.77,5.0827]
[1739308256399,8.93891046,196.82,196.76,8.97434318]
[1739308257001,8.93891046,196.82,196.79,5.0823]
[1739308257202,5.0811,196.84,196.78,8.93891046]
[1739308257606,8.93891046,196.86,196.81,5.0816]
[1739308257802,5.081,196.84,196.79,0.03851521]
[1739308258603,5.081,196.84,196.79,5.12061521]
[1739308258797,8.93891046,196.86,196.79,0.03851521]
[1739308259004,5.0813,196.83,196.79,0.03851521]
[1739308259404,5.0815,196.82,196.79,0.03851521]
[1739308260406,5.082,196.8,196.79,0.03851521]
[1739308260800,8.93891046,196.82,196.79,0.03851521]
[1739308262601,14.02041046,196.82,196.79,0.03851521]
[1739308262801,8.93891046,196.84,196.79,0.03851521]
[1739308263507,8.93891046,196.86,196.79,0.03851521]
[1739308263804,8.93891046,196.86,196.8,8.93891046]
[1739308264008,15.62651046,196.88,196.82,5.0813]
[1739308264198,14.01901046,196.88,196.82,14.02021046]
[1739308264398,14.01901046,196.88,196.83,0.03238399]
[1739308265201,5.0803,196.87,196.83,0.03238399]
[1739308265711,8.93891046,196.88,196.83,0.03238399]
[1739308265911,14.01891046,196.88,196.83,0.03238399]
[1739308266210,8.93891046,196.88,196.83,0.03238399]
[1739308267310,5.0803,196.87,196.83,0.03238399]
[1739308268404,5.0807,196.86,196.83,0.03238399]
[1739308269112,8.93891046,196.84,196.83,0.03238399]
[1739308269511,8.93891046,196.86,196.83,0.03238399]
[1739308269813,14.01941046,196.86,196.83,0.03238399]
[1739308270412,5.081,196.85,196.83,0.03238399]
[1739308271012,14.01991046,196.84,196.83,0.03238399]
[1739308277022,8.93891046,196.84,196.77,5.0828]
[1739308277217,14.02051046,196.82,196.77,5.0828]
[1739308277823,8.93891046,196.82,196.76,8.93891046]
[1739308278115,5.0818,196.81,196.76,14.02191046]
[1739308278321,5.11863332,196.81,196.77,0.03454687]
[1739308279324,0.03683332,196.81,196.77,0.03454687]
[1739308280727,5.11873332,196.81,196.77,5.11734687]
[1739308281630,5.082,196.8,196.77,0.03454687]
[1739308281823,8.93891046,196.78,196.77,0.03454687]
[1739308282528,14.02141046,196.78,196.77,0.03454687]
[1739308286530,8.93891046,196.78,196.66,8.93891046]
[1739308286722,8.93891046,196.73,196.66,8.93891046]
[1739308287328,14.02291046,196.73,196.69,5.0848]
[1739308287727,14.05609345,196.73,196.69,5.11681227]
[1739308289132,5.0841,196.72,196.69,5.11681227]
[1739308289327,8.97209345,196.73,196.69,0.03201227]
[1739308289530,5.0846,196.71,196.69,0.03201227]
[1739308289732,8.97209345,196.73,196.69,0.03201227]
[1739308290728,5.0846,196.7,196.69,0.03201227]
[1739308297638,14.02331046,196.71,196.69,0.03201227]
[1739308298136,8.97209345,196.73,196.69,0.03201227]
[1739308298336,5.0843,196.72,196.69,0.03201227]
[1739308298537,8.97209345,196.73,196.69,0.03201227]
[1739308298737,5.0846,196.71,196.69,0.03201227]
[1739308298932,8.97209345,196.73,196.69,0.03201227]
[1739308300237,5.0846,196.7,196.69,0.03201227]
[1739308305139,14.02331046,196.71,196.69,0.03201227]
[1739308305441,8.97209345,196.73,196.69,0.03201227]
[1739308306032,14.05609345,196.73,196.69,5.11681227]
[1739308306543,8.97209345,196.73,196.69,0.03201227]
[1739308306743,5.0843,196.72,196.69,0.03201227]
[1739308309546,14.05599345,196.73,196.69,5.11691227]
[1739308309744,5.11708299,196.73,196.69,5.11691227]
[1739308309946,0.03318299,196.73,196.69,0.03201227]
[1739308310744,0.03318299,196.73,196.7,5.0844]
[1739308310944,0.03318299,196.73,196.7,8.93891046]
[1739308311642,8.93891046,196.79,196.72,8.93891046]
[1739308312741,8.93891046,196.79,196.74,0.03367299]
[1739308312946,0.0330258,196.77,196.74,0.03367299]
[1739308313445,0.0330258,196.77,196.74,5.11717299]
[1739308313645,8.97193626,196.77,196.74,0.03367299]
[1739308314448,5.0832,196.76,196.74,0.03367299]
[1739308315043,8.97193626,196.77,196.74,0.03367299]
[1739308315244,8.93891046,196.75,196.74,0.03367299]
[1739308315646,14.02221046,196.75,196.74,0.03367299]
[1739308321141,8.93891046,196.75,196.74,0.03367299]
[1739308321346,8.97193626,196.77,196.74,0.03367299]
[1739308321543,0.0330258,196.77,196.74,0.03367299]
[1739308322247,0.0330258,196.77,196.76,5.0831]
[1739308322550,0.0330258,196.77,196.74,0.03367299]
[1739308323754,0.0330258,196.77,196.75,5.0833]
[1739308325153,0.0330258,196.77,196.74,5.11717299]
[1739308326052,8.97193626,196.77,196.74,0.03367299]
[1739308327050,8.93891046,196.75,196.74,0.03367299]
[1739308327650,14.02221046,196.75,196.74,0.03367299]
[1739308338758,0.0330258,196.77,196.74,0.03367299]
[1739308338962,0.0330258,196.77,196.75,5.0832]
[1739308339263,0.0330258,196.77,196.74,8.97258345]
[1739308339862,0.0330258,196.77,196.75,5.0831]
[1739308340956,0.0330258,196.77,196.74,14.05608345]
[1739308341261,0.0330258,196.77,196.74,5.11717299]
[1739308341767,8.97193626,196.77,196.74,0.03367299]
[1739308342367,14.05493626,196.77,196.74,0.03367299]
[1739308343163,8.97193626,196.77,196.74,0.03367299]
[1739308344868,14.05493626,196.77,196.74,0.03367299]
[1739308347473,0.0330258,196.77,196.74,8.97258345]
[1739308348566,8.93891046,196.83,196.76,8.93891046]
[1739308348770,8.93891046,196.85,196.78,8.93891046]
[1739308349170,14.01971046,196.85,196.78,8.93891046]
[1739308349575,14.01971046,196.85,196.8,5.082]
[1739308349774,0.02040847,196.83,196.8,5.11558243]
[1739308350378,0.02040847,196.83,196.8,0.03358243]
[1739308350675,0.02040847,196.83,196.81,5.0817]
[1739308351770,0.02040847,196.83,196.8,0.03358243]
[1739308352169,8.95931893,196.83,196.8,0.03358243]
[1739308352477,14.02071046,196.81,196.8,0.03358243]
[1739308353167,5.083,196.77,196.7,8.93891046]
[1739308353979,5.083,196.77,196.72,5.0839]
[1739308354477,0.03806447,196.76,196.73,0.0365631]
[1739308354974,8.97697493,196.76,196.73,0.0365631]
[1739308355277,5.0836,196.74,196.73,0.0365631]
[1739308356278,14.02251046,196.74,196.73,0.0365631]
[1739308357180,8.93891046,196.74,196.73,0.0365631]
[1739308357580,8.97697493,196.76,196.73,0.0365631]
[1739308357782,0.03806447,196.76,196.73,0.0365631]
[1739308357988,0.03806447,196.76,196.73,5.1201631]
[1739308358888,8.97697493,196.76,196.73,0.0365631]
[1739308359085,8.93891046,196.74,196.73,0.0365631]
[1739308359687,14.02251046,196.74,196.73,0.0365631]
[1739308360989,8.97697493,196.76,196.73,0.0365631]
[1739308362390,8.97697493,196.76,196.73,5.1202631]
[1739308362788,0.03806447,196.76,196.75,5.0833]
[1739308364293,0.03806447,196.76,196.73,0.0365631]
[1739308364493,0.03806447,196.76,196.74,5.0835]
[1739308367595,0.03806447,196.76,196.75,5.0833]
[1739308367893,8.93891046,196.86,196.74,8.93891046]
[1739308368096,14.01951046,196.86,196.81,8.93891046]
[1739308368690,14.01951046,196.86,196.81,14.02061046]
[1739308368886,8.93891046,196.86,196.82,0.03704944]
[1739308369086,5.0808,196.85,196.82,0.03704944]
[1739308371497,8.93891046,196.84,196.82,0.03704944]
[1739308371698,5.0812,196.83,196.82,0.03704944]
[1739308379397,8.93891046,196.84,196.71,8.93891046]
[1739308379701,14.02171046,196.77,196.71,8.93891046]
[1739308380096,8.93891046,196.77,196.71,8.93891046]
[1739308380494,8.93891046,196.77,196.74,5.0834]
[1739308380804,0.03446656,196.76,196.74,5.0834]
[1739308381801,8.93891046,196.75,196.72,0.03398325]
[1739308382193,14.02241046,196.75,196.72,0.03398325]
[1739308382801,5.0838,196.74,196.72,0.03398325]
[1739308383605,5.0838,196.73,196.72,0.03398325]
[1739308384104,8.93891046,196.73,196.72,0.03398325]
[1739308384406,14.02271046,196.73,196.72,0.03398325]
[1739308385506,8.93891046,196.75,196.72,0.03398325]
[1739308385707,14.02231046,196.75,196.72,5.11788325]
[1739308386808,0.03446656,196.76,196.74,5.0836]
[1739308387906,8.93891046,196.75,196.72,0.03398325]
[1739308388810,5.0837,196.74,196.72,0.03398325]
[1739308389012,8.93891046,196.75,196.72,0.03398325]
[1739308389311,8.93891046,196.75,196.72,5.11788325]
[1739308390507,8.93891046,196.75,196.72,0.03398325]
[1739308391808,8.93891046,196.75,196.72,5.11808325]
[1739308392009,14.02241046,196.75,196.72,5.11808325]
[1739308393412,5.0838,196.73,196.72,0.03398325]
[1739308394914,5.0836,196.74,196.72,0.03398325]
[1739308396620,8.93891046,196.75,196.72,0.03398325]
[1739308396811,14.02241046,196.75,196.72,0.03398325]
[1739308397716,14.02241046,196.75,196.72,5.11798325]
[1739308398716,5.0836,196.74,196.72,5.11798325]
[1739308398917,5.0836,196.74,196.72,0.03398325]
[1739308399318,14.02231046,196.75,196.72,0.03398325]
[1739308399519,8.93891046,196.75,196.73,5.0837]
[1739308403821,8.93891046,196.75,196.72,0.03398325]
[1739308404124,8.93891046,196.73,196.72,0.03398325]
[1739308404720,14.02271046,196.73,196.72,0.03398325]
[1739308419336,5.0838,196.73,196.72,0.03398325]
[1739308420734,8.93891046,196.75,196.72,0.03398325]
[1739308420941,0.03446656,196.76,196.73,8.93891046]
[1739308421130,0.03446656,196.76,196.75,8.93891046]
[1739308421938,0.03446656,196.76,196.73,10.44121046]
[1739308422138,0.03446656,196.76,196.73,1.5023]
[1739308423229,0.03446656,196.76,196.72,0.03398325]
[1739308423430,8.93891046,196.75,196.72,0.03398325]
[1739308423641,14.02241046,196.75,196.72,0.03398325]
[1739308425541,8.93891046,196.75,196.72,5.11788325]
[1739308426141,0.03446656,196.76,196.74,5.0834]
[1739308426342,0.03446656,196.76,196.73,8.93891046]
[1739308426747,0.03446656,196.76,196.74,5.0836]
[1739308427146,0.03446656,196.76,196.72,0.03398325]
[1739308428043,0.03446656,196.76,196.75,5.0833]
[1739308430750,0.03446656,196.76,196.75,14.02221046]
[1739308431447,14.02021046,196.83,196.75,8.93891046]
[1739308431643,8.93891046,196.83,196.8,5.082]
[1739308432749,8.93891046,196.83,196.8,0.03607311]
[1739308433149,8.93891046,196.81,196.8,0.03607311]
[1739308434755,14.02071046,196.81,196.8,0.03607311]
[1739308450261,5.0826,196.78,196.72,1.6071]
[1739308450459,8.93891046,196.76,196.72,1.6071]
[1739308451663,14.02261046,196.74,196.72,0.03263051]
[1739308452162,8.93891046,196.74,196.72,0.03263051]
[1739308453163,14.02251046,196.74,196.72,0.03263051]
[1739308454065,5.0838,196.73,196.72,0.03263051]
[1739308455561,5.0838,196.73,196.65,3.0895]
[1739308455562,5.0848,196.7,196.65,1.61]
[1739308455861,8.93891046,196.66,196.62,5.0865]
[1739308456059,8.93891046,196.66,196.61,8.93891046]
[1739308456562,0.03729161,196.65,196.62,0.03431431]
[1739308456866,0.03729161,196.65,196.63,5.0862]
[1739308458367,0.03729161,196.65,196.64,5.0862]
[1739308459670,0.03729161,196.65,196.62,0.03431431]
[1739308459671,0.03729161,196.65,196.62,5.12071431]
[1739308459876,8.93891046,196.64,196.62,5.12071431]
[1739308460369,0.03729161,196.65,196.62,5.12071431]
[1739308462075,8.93891046,196.64,196.62,0.03431431]
[1739308462370,14.02511046,196.64,196.62,0.03431431]
[1739308464184,5.0864,196.63,196.62,0.03431431]
[1739308469478,8.93891046,196.64,196.62,0.03431431]
[1739308471787,0.03729161,196.65,196.62,0.03431431]
[1739308472577,0.03729161,196.65,196.63,5.0862]
[1739308472782,0.03729161,196.65,196.62,0.03431431]
[1739308473183,0.03729161,196.65,196.63,5.0864]
[1739308473589,0.03729161,196.65,196.62,0.03431431]
[1739308474185,0.03729161,196.65,196.62,5.12091431]
[1739308474395,0.03729161,196.65,196.62,0.03431431]
[1739308474888,0.03729161,196.65,196.63,5.0863]
[1739308475389,0.03729161,196.65,196.62,0.03431431]
[1739308475592,0.03729161,196.65,196.62,5.12091431]
[1739308476090,0.03729161,196.65,196.63,5.0864]
[1739308476290,0.03729161,196.65,196.62,0.03431431]
[1739308477691,0.03729161,196.65,196.62,5.12091431]
[1739308478382,0.03729161,196.65,196.62,5.12101431]
[1739308478383,5.12319161,196.65,196.62,5.12101431]
[1739308478893,0.03729161,196.65,196.62,5.12101431]
[1739308480787,0.03729161,196.65,196.62,0.03431431]
[1739308480992,0.03729161,196.65,196.62,1.63831431]
[1739308481287,0.03729161,196.65,196.63,8.93891046]
[1739308481889,0.03729161,196.65,196.64,5.0862]
[1739308483896,82.82252611,196.7,196.63,8.93891046]
[1739308484096,82.82252611,196.7,196.66,5.0855]
[1739308485193,82.85495244,196.7,196.66,5.12095849]
[1739308486692,82.85495244,196.7,196.66,0.03545849]
[1739308487095,5.085,196.69,196.66,0.03545849]
[1739308487797,5.085,196.69,196.66,5.12105849]
[1739308488700,5.085,196.69,196.66,0.03545849]
[1739308488899,14.02411046,196.68,196.66,0.03545849]
[1739308490200,8.93891046,196.68,196.66,0.03545849]
[1739308494703,5.0854,196.67,196.66,0.03545849]
[1739308496000,5.0862,196.64,196.61,5.0869]
[1739308496301,8.93891046,196.62,196.61,5.0869]
[1739308498205,8.93891046,196.62,196.6,5.12385184]
[1739308499009,8.93891046,196.62,196.61,5.0869]
[1739308499206,0.03386409,196.63,196.61,5.0869]
[1739308500806,14.02581046,196.62,196.6,0.03675184]
[1739308501014,8.93891046,196.62,196.6,0.03675184]
[1739308501406,5.0869,196.61,196.6,0.03675184]
[1739308501910,0.03386409,196.63,196.61,5.0867]
[1739308502507,5.12036409,196.63,196.6,5.12385184]
[1739308503112,0.03386409,196.63,196.61,5.0867]
[1739308504814,0.03386409,196.63,196.6,5.12385184]
[1739308505013,14.02561046,196.62,196.6,0.03675184]
[1739308505311,8.93891046,196.62,196.6,0.03675184]
[1739308505617,5.0869,196.61,196.6,0.03675184]
[1739308517522,8.93891046,196.62,196.49,8.93891046]
[1739308517819,8.93891046,196.55,196.49,8.93891046]
[1739308518214,14.02761046,196.55,196.51,5.0893]
[1739308518722,8.9745414,196.55,196.51,5.12754703]
[1739308518924,5.0888,196.54,196.51,0.03824703]
[1739308519526,8.93891046,196.53,196.51,0.03824703]
[1739308520623,8.9745414,196.55,196.51,0.03824703]
[1739308521227,0.03563094,196.55,196.54,5.0887]
[1739308521525,8.93891046,196.59,196.53,8.93891046]
[1739308522217,8.93891046,196.59,196.51,0.03824703]
[1739308522526,81.15171118,196.63,196.57,8.93891046]
[1739308522921,0.03404094,196.62,196.59,8.93891046]
[1739308523221,72.21280072,196.63,196.61,5.0867]
[1739308523421,0.03392478,196.62,196.61,5.0867]
[1739308524135,8.93891046,196.69,196.64,5.0861]
[1739308524427,8.93891046,196.71,196.65,8.93891046]
[1739308525227,8.93891046,196.69,196.64,5.086]
[1739308525426,8.93891046,196.67,196.66,0.03564131]
[1739308526626,14.02431046,196.67,196.66,0.03564131]
[1739308527225,8.93891046,196.67,196.57,8.93891046]
[1739308527430,8.93891046,196.62,196.59,5.0874]
[1739308527625,19.06017457,196.65,196.59,5.0874]
[1739308528032,19.06017457,196.65,196.53,13.97417457]
[1739308528431,0.03461963,196.61,196.57,0.03324138]
[1739308529129,0.03461963,196.61,196.57,5.12104138]
[1739308529330,0.03461963,196.61,196.57,0.03324138]
[1739308530132,5.12151963,196.61,196.57,0.03324138]
[1739308530335,0.03461963,196.61,196.57,0.03324138]
[1739308530734,5.0874,196.6,196.57,0.03324138]
[1739308531138,0.03461963,196.61,196.57,0.03324138]
[1739308531631,13.97417457,196.59,196.57,0.03324138]
[1739308532037,5.0877,196.58,196.57,0.03324138]
[1739308542246,13.97417457,196.59,196.44,13.97417457]
[1739308542449,5.0896,196.51,196.47,5.0903]
[1739308542644,13.97417457,196.54,196.41,18.66597457]
[1739308543141,5.0897,196.51,196.47,5.0905]
[1739308543344,13.97417457,196.54,196.47,5.0905]
[1739308543648,0.03203641,196.51,196.47,5.12604166]
[1739308544550,0.03203641,196.51,196.48,5.0903]
[1739308545341,0.03203641,196.51,196.47,0.03554166]
[1739308545539,0.03203641,196.51,196.5,5.0898]
[1739308546348,0.03203641,196.51,196.49,5.09]
[1739308547148,0.03203641,196.51,196.47,0.03554166]
[1739308547454,0.03203641,196.51,196.5,5.0898]
[1739308548743,13.97417457,196.68,196.5,27.94834914]
[1739308548944,13.97417457,196.68,196.56,13.97417457]
[1739308549149,140.22182488,196.67,196.57,1.5831]
[1739308549638,140.22182488,196.67,196.62,8.9377533]
[1739308549840,0.03802283,196.64,196.62,8.9377533]
[1739308550041,140.22182488,196.67,196.62,8.9377533]
[1739308550249,140.22182488,196.67,196.64,8.9377533]
[1739308551050,140.22182488,196.67,196.62,8.9377533]
[1739308551245,0.03425607,196.67,196.62,8.9377533]
[1739308551749,0.03425607,196.67,196.6,0.03266237]
[1739308552548,0.03425607,196.67,196.6,5.11956237]
[1739308554649,5.11965607,196.67,196.6,5.11956237]
[1739308554842,0.03425607,196.67,196.6,0.03266237]
[1739308555847,5.0857,196.66,196.6,0.03266237]
[1739308556650,5.0857,196.66,196.6,5.11986237]
[1739308557547,5.086,196.65,196.6,0.03266237]
[1739308558442,5.086,196.65,196.6,5.11986237]
[1739308561461,5.0862,196.64,196.6,5.11986237]
[1739308561661,13.96610813,196.65,196.6,0.03266237]
[1739308562665,0.03425607,196.67,196.6,0.03266237]
[1739308564062,5.0866,196.63,196.6,0.03266237]
[1739308564262,0.03425607,196.67,196.6,0.03266237]
[1739308564465,13.96610813,196.65,196.6,0.03266237]
[1739308565266,0.03425607,196.67,196.6,0.03266237]
[1739308565563,5.0859,196.66,196.6,0.03266237]
[1739308565764,5.0859,196.66,196.61,5.0868]
[1739308566460,5.0861,196.65,196.61,5.0868]
[1739308566863,0.03425607,196.67,196.63,5.0862]
[1739308567165,0.03425607,196.67,196.62,13.96610813]
[1739308567366,13.96610813,196.74,196.63,1.6127]
[1739308567567,5.0841,196.73,196.67,5.0854]
[1739308568067,13.96610813,196.74,196.67,5.0854]
[1739308568261,13.96610813,196.74,196.65,5.0857]
[1739308568468,13.96610813,196.74,196.69,0.03836035]
[1739308569969,5.0844,196.71,196.69,0.03836035]
[1739308571470,13.96610813,196.74,196.69,0.03836035]
[1739308571666,5.0846,196.7,196.69,0.03836035]
[1739308574566,13.96610813,196.74,196.69,0.03836035]
[1739308574870,5.0841,196.73,196.69,0.03836035]
[1739308575070,13.96610813,196.77,196.69,0.03836035]
[1739308575369,5.0833,196.75,196.69,0.03836035]
[1739308575562,5.0833,196.75,196.7,5.0844]
[1739308575764,13.96610813,196.77,196.69,0.03836035]
[1739308575963,5.0839,196.73,196.69,0.03836035]
[1739308576166,13.96610813,196.77,196.69,0.03836035]
[1739308576470,74.59368374,196.8,196.69,0.03836035]
[1739308576471,13.96610813,196.74,196.69,0.03836035]
[1739308576665,5.0845,196.71,196.69,0.03836035]
[1739308580169,13.96610813,196.74,196.69,0.03836035]
[1739308580476,5.0846,196.7,196.69,0.03836035]
[1739308583080,5.0843,196.72,196.69,0.03836035]
[1739308583480,8.93588444,196.73,196.69,0.03836035]
[1739308583683,5.0844,196.71,196.69,0.03836035]
[1739308584385,5.0846,196.7,196.69,0.03836035]
[1739308584781,8.93588444,196.73,196.69,0.03836035]
[1739308584977,5.0844,196.71,196.69,0.03836035]
[1739308585180,8.93588444,196.73,196.69,0.03836035]
[1739308585374,14.01968444,196.73,196.7,5.0844]
[1739308585680,87.81351098,196.79,196.69,0.03836035]
[1739308585880,5.0831,196.76,196.7,5.0845]
[1739308586178,87.81351098,196.79,196.7,5.0845]
[1739308586573,87.81351098,196.79,196.69,0.03836035]
[1739308586778,73.85843691,196.79,196.69,13.99343442]
[1739308586975,78.94073691,196.79,196.69,13.99343442]
[1739308587381,73.85843691,196.79,196.74,5.0833]
[1739308587776,73.85843691,196.79,196.75,0.03331632]
[1739308589378,73.85843691,196.79,196.76,5.083]
[1739308589686,73.85843691,196.79,196.75,0.03331632]
[1739308591088,13.95507407,196.85,196.75,0.03331632]
[1739308591481,5.0817,196.82,196.78,5.0823]
[1739308591788,5.0817,196.82,196.74,1.6077]
[1739308591989,5.0817,196.82,196.78,0.03607599]
[1739308592689,13.95507407,196.85,196.78,0.03607599]
[1739308592884,5.0818,196.81,196.78,0.03607599]
[1739308593192,13.95507407,196.85,196.78,0.03607599]
[1739308593889,5.0807,196.85,196.78,0.03607599]
[1739308594091,13.95507407,196.88,196.78,0.03607599]
[1739308594495,5.0811,196.84,196.8,5.082]
[1739308594887,5.0811,196.84,196.8,5.11947868]
[1739308595688,5.0808,196.85,196.81,5.0817]
[1739308596583,13.95507407,196.88,196.81,5.0817]
[1739308597193,5.0809,196.85,196.81,5.0817]
[1739308597490,13.95507407,196.88,196.8,5.11947868]
[1739308597691,5.0806,196.86,196.8,0.03747868]
[1739308597889,13.95507407,196.88,196.8,5.11947868]
[1739308598692,5.0812,196.84,196.8,5.11947868]
[1739308598893,13.95507407,196.88,196.8,5.11947868]
[1739308599393,13.95507407,196.88,196.8,0.03747868]
[1739308601093,13.95507407,196.85,196.8,0.03747868]
[1739308601688,5.0818,196.81,196.8,0.03747868]
[1739308601896,19.03687407,196.81,196.8,0.03747868]
[1739308603189,19.03687407,196.81,196.72,193.0]
[1739308603190,13.95507407,196.81,196.72,193.0]
[1739308603392,4.6456,196.84,196.7,5.0844]
[1739308603393,13.95507407,196.78,196.7,5.0844]